bitfinex-derivatives/quotes_ETHF0:USTF0_20250321
["timestamp","ask_amount","ask_price","bid_price","bid_amount"]
[1742594392136,4.6293,1975.1,1975.0,5.56993648]
[1742594394935,5.64229,1975.1,1975.0,5.56993648]
[1742594395237,4.6293,1975.1,1975.0,5.56993648]
[1742594395632,1.3953,1975.1,1975.0,5.56993648]
[1742594395831,3.231,1975.1,1975.0,5.56993648]
[1742594398843,4.6392,1975.1,1975.0,5.56993648]
[1742594400537,3.231,1975.1,1975.0,5.56993648]
[1742594400943,3.23,1975.3,1975.2,1.01294]
[1742594401143,0.00759648,1975.5,1975.4,1.01283]
[1742594401343,3.23659648,1975.5,1975.4,4.22063]
[1742594401937,3.23659648,1975.5,1975.4,5.60133]
[1742594403341,4.24937648,1975.5,1975.4,5.60133]
[1742594403540,5.61757648,1975.5,1975.4,5.60133]
[1742594406050,0.00759648,1975.5,1975.4,5.60133]
[1742594407251,0.00759648,1975.5,1975.4,6.29743]
[1742594410753,1.31859648,1975.5,1975.4,6.29743]
[1742594411745,2.33137648,1975.5,1975.4,5.60133]
[1742594412053,2.33137648,1975.5,1975.4,1.01283]
[1742594412356,2.33137648,1975.5,1975.4,1.3775]
[1742594412542,1.01283,1975.4,1975.3,1.70464]
[1742594412746,1.01288,1975.3,1975.2,4.5853]
[1742594412955,2.34898,1975.3,1975.2,4.5853]
[1742594413157,3.64328,1975.3,1975.2,4.5853]
[1742594414247,3.64328,1975.3,1975.2,5.59819]
[1742594420553,3.64328,1975.3,1975.2,2.39039]
[1742594422458,3.64328,1975.3,1975.2,1.3775]
[1742594422657,3.64328,1975.3,1975.2,2.39044]
[1742594423059,2.99038,1975.3,1975.2,2.39044]
[1742594431459,3.229,1975.4,1975.2,2.39044]
[1742594431460,0.00759648,1975.5,1975.4,1.01283]
[1742594431768,3.22659648,1975.5,1975.4,4.22063]
[1742594431967,3.22659648,1975.5,1975.4,6.24263]
[1742594432770,0.00759648,1975.5,1975.4,6.24263]
[1742594433373,1.36399648,1975.5,1975.4,6.24263]
[1742594436079,1.36399648,1975.5,1975.4,3.03483]
[1742594436478,1.36399648,1975.5,1975.4,6.24263]
[1742594448579,0.00759648,1975.5,1975.4,6.24263]
[1742594453683,1.02037648,1975.5,1975.4,6.24263]
[1742594454288,5.58747648,1975.5,1975.4,3.2078]
[1742594454489,1.01288,1975.3,1975.2,4.37159391]
[1742594454689,4.22988,1975.3,1975.2,3.04139391]
[1742594454887,4.22988,1975.3,1975.2,2.02848391]
[1742594455089,6.22688,1975.3,1975.2,2.02848391]
[1742594457794,1.01294,1975.2,1975.1,3.2078]
[1742594458087,2.34614,1975.2,1975.1,3.2078]
[1742594459289,2.34614,1975.2,1975.1,4.22079]
[1742594459594,2.34614,1975.2,1975.1,3.2078]
[1742594461382,1.01299,1975.1,1975.0,1.02062648]
[1742594461586,5.61969,1975.1,1975.0,4.22842648]
[1742594461988,5.61969,1975.1,1975.0,3.21539648]
[1742594462589,6.49010229,1975.1,1975.0,3.21539648]
[1742594463297,6.5705769,1975.1,1975.0,0.00759648]
[1742594463791,1.01324,1974.6,1974.5,1.01326]
[1742594463984,1.01329,1974.5,1974.4,5.55762]
[1742594464191,2.34669,1974.5,1974.4,6.90992]
[1742594464686,2.34669,1974.5,1974.4,5.57342]
[1742594464991,1.01335,1974.4,1974.3,0.00759648]
[1742594465190,5.56375,1974.4,1974.3,0.00759648]
[1742594468197,4.5504,1974.4,1974.3,1.02099648]
[1742594468402,50.042,1974.6,1974.5,1.01329]
[1742594468700,3.218,1974.6,1974.5,4.22109]
[1742594469101,3.22,1974.8,1974.7,1.01319]
[1742594469300,3.22,1974.8,1974.7,4.22099]
[1742594469698,3.22,1974.8,1974.7,5.63899]
[1742594470203,3.222,1975.0,1974.9,1.01304]
[1742594470403,3.222,1975.0,1974.9,4.22084]
[1742594470605,3.222,1975.0,1974.9,6.33734]
[1742594476109,2.38086,1975.4,1975.3,1.01288]
[1742594476307,5.60186,1975.4,1975.3,4.22068]
[1742594479813,4.589,1975.4,1975.3,4.22068]
[1742594480012,5.60183,1975.4,1975.3,4.22068]
[1742594481114,5.60183,1975.4,1975.3,5.59878]
[1742594481709,1.01293,1975.3,1975.2,1.01289]
[1742594481910,1.01294,1975.2,1975.1,4.22074]
[1742594482112,4.89754,1975.2,1975.1,4.22074]
[1742594482513,4.89754,1975.2,1975.1,4.22079]
[1742594483813,4.89754,1975.2,1975.1,3.2078]
[1742594484021,1.01299,1975.1,1975.0,1.01299]
[1742594484210,2.31959,1975.1,1975.0,1.01299]
[1742594486114,2.31959,1975.1,1975.0,2.43429]
[1742594499337,3.19090793,1975.1,1975.0,2.43429]
[1742594500041,2.31959,1975.1,1975.0,2.43429]
[1742594500342,3.19099827,1975.1,1975.0,2.43429]
[1742594500639,2.31959,1975.1,1975.0,2.43429]
[1742594502542,3.19108024,1975.1,1975.0,2.43429]
[1742594502743,2.31959,1975.1,1975.0,2.43429]
[1742594503532,3.19114256,1975.1,1975.0,2.43429]
[1742594505943,2.31959,1975.1,1975.0,2.43429]
[1742594506442,3.19170346,1975.1,1975.0,2.43429]
[1742594506846,3.19170346,1975.1,1975.0,1.4213]
[1742594510244,1.01304,1975.0,1974.9,3.2078]
[1742594510548,1.01309,1974.9,1974.8,2.7514]
[1742594510847,1.01309,1974.9,1974.5,4.22106]
[1742594510848,1.01319,1974.7,1974.6,1.01323]
[1742594511047,4.23119,1974.7,1974.6,3.09223]
[1742594511248,6.41130346,1974.7,1974.6,2.079]
[1742594511640,1.01335,1974.4,1974.3,4.22878648]
[1742594511841,4.23135,1974.4,1974.3,5.53918648]
[1742594512941,5.53935,1974.4,1974.3,4.52579648]
[1742594513141,6.41146346,1974.4,1974.3,4.52579648]
[1742594513341,6.41146346,1974.4,1974.3,1.34069648]
[1742594516544,5.53935,1974.4,1974.3,1.34069648]
[1742594516950,6.40881195,1974.4,1974.3,1.34069648]
[1742594517554,5.53935,1974.4,1974.3,1.34069648]
[1742594518642,5.53935,1974.4,1974.3,0.00759648]
[1742594519049,5.61978798,1974.4,1974.3,0.00759648]
[1742594519455,6.30938798,1974.4,1974.3,0.00759648]
[1742594521551,46.826,1974.6,1974.3,6.76226648]
[1742594521752,50.045,1974.6,1974.5,4.22109]
[1742594521953,3.222,1974.8,1974.5,3.2078]
[1742594522152,4.23514,1974.8,1974.7,4.22099]
[1742594522347,3.222,1974.8,1974.7,4.22099]
[1742594522547,50.0448,1975.2,1975.1,1.01299]
[1742594522548,46.837,1975.2,1975.1,1.01299]
[1742594522754,1.01302,1975.1,1975.0,3.2078]
[1742594523460,1.01302,1975.1,1975.0,4.2208]
[1742594524057,1.01304,1975.0,1974.9,1.3348]
[1742594524261,4.23704,1975.0,1974.9,1.3348]
[1742594524856,4.23704,1975.0,1974.6,1.68403]
[1742594524857,1.01319,1974.7,1974.6,0.6708]
[1742594525057,4.24119,1974.7,1974.6,1.3776]
[1742594525261,4.32166347,1974.7,1974.6,1.3776]
[1742594525653,5.71676347,1974.7,1974.6,1.3776]
[1742594525950,5.71676231,1974.7,1974.6,1.3776]
[1742594526453,6.58543154,1974.7,1974.6,1.3776]
[1742594526655,1.01329,1974.5,1974.4,1.3902]
[1742594526963,4.24429,1974.5,1974.4,2.0929]
[1742594527460,1.01335,1974.4,1974.3,0.00759648]
[1742594527662,2.40765,1974.4,1974.3,0.00759648]
[1742594527865,3.19461352,1974.4,1974.3,0.00759648]
[1742594528160,4.06320189,1974.4,1974.3,0.00759648]
[1742594530259,0.08046352,1974.4,1974.3,0.00759648]
[1742594530463,50.074,1974.5,1974.4,1.01335]
[1742594530660,51.08729,1974.5,1974.4,2.98415]
[1742594531167,46.836,1974.5,1974.4,6.19195]
[1742594531372,3.238,1974.5,1974.4,6.19195]
[1742594531763,1.01323,1974.7,1974.6,1.01324]
[1742594532067,4.25323,1974.7,1974.6,1.01324]
[1742594532464,4.25323,1974.7,1974.6,1.295]
[1742594532768,1.01329,1974.5,1974.4,0.6758]
[1742594533069,4.25429,1974.5,1974.4,0.6758]
[1742594534172,4.25429,1974.5,1974.4,2.0304]
[1742594536267,4.25429,1974.5,1974.4,1.3546]
[1742594536569,15.8668522,1974.5,1973.7,1.01369]
[1742594536768,2.9776522,1974.4,1973.9,1.4066]
[1742594537069,3.249,1974.3,1974.2,4.22125]
[1742594537262,3.249,1974.3,1974.2,5.62785]
[1742594537463,3.249,1974.3,1974.2,6.28855]
[1742594537867,4.2624,1974.3,1974.2,5.2751]
[1742594538063,3.32949453,1974.3,1974.2,3.08075]
[1742594538375,3.249,1974.3,1974.2,3.08075]
[1742594539470,4.2624,1974.3,1974.2,1.4066]
[1742594539672,6.3929,1974.3,1974.2,1.4066]
[1742594539871,6.47339462,1974.3,1974.2,1.4066]
[1742594540272,7.3435734,1974.3,1974.2,1.4066]
[1742594540666,0.08049462,1974.3,1974.2,5.62785]
[1742594540861,0.00759648,1974.4,1974.3,1.0134]
[1742594541067,0.00759648,1974.4,1974.3,2.4077]
[1742594541274,1.421,1974.8,1974.7,1.01319]
[1742594541470,0.6969,1975.3,1974.6,5.23628391]
[1742594541672,1.01304,1975.1,1975.0,1.01302]
[1742594541977,1.01304,1975.1,1975.0,1.68912]
[1742594542168,1.01304,1975.1,1975.0,1.3406]
[1742594542369,2.47994619,1975.1,1975.0,1.3406]
[1742594542570,1.01309,1974.9,1974.8,0.6734]
[1742594542768,1.01319,1974.7,1974.6,2.02848391]
[1742594542969,1.01329,1974.6,1974.5,2.014]
[1742594543163,1.01345,1974.2,1974.1,3.21539648]
[1742594543365,1.01345,1974.2,1974.1,0.00759648]
[1742594543366,4.28945,1974.2,1974.1,0.00759648]
[1742594543967,5.74054,1974.9,1974.3,2.53345]
[1742594544271,1.01333,1974.5,1974.4,1.01333]
[1742594544474,1.01329,1974.6,1974.5,1.01328]
[1742594544672,1.01329,1974.6,1974.5,2.35388]
[1742594545579,1.01329,1974.6,1974.5,1.3406]
[1742594545777,2.40769,1974.6,1974.5,1.3406]
[1742594546082,2.48757867,1974.6,1974.5,1.3406]
[1742594546577,1.01345,1974.2,1974.1,3.21539648]
[1742594546775,4.29845,1974.2,1974.1,0.00759648]
[1742594546982,4.37832344,1974.2,1974.1,0.00759648]
[1742594547279,1.01365,1973.8,1973.7,1.3365]
[1742594547481,1.88388369,1974.0,1973.7,2.0157]
[1742594547679,3.292,1973.9,1973.8,4.22145]
[1742594547874,48.1726,1974.1,1974.0,1.01355]
[1742594548177,3.293,1974.1,1973.9,1.3275]
[1742594548367,1.01355,1974.0,1973.9,1.33509648]
[1742594548571,2.34515,1974.0,1973.9,1.33509648]
[1742594548773,2.34515,1974.0,1973.9,2.34869648]
[1742594550772,2.34515,1974.0,1973.9,1.33509648]
[1742594551075,2.34515,1974.0,1973.9,3.21539648]
[1742594551277,2.42501825,1974.0,1973.9,0.00759648]
[1742594551578,2.34515,1974.0,1973.9,0.00759648]
[1742594551779,3.29463087,1974.0,1973.9,0.00759648]
[1742594551977,0.07986793,1974.0,1973.9,1.02119648]
[1742594552283,3.30759648,1974.2,1974.1,1.0135]
[1742594552480,3.30759648,1974.2,1974.1,4.2213]
[1742594552978,3.30759648,1974.2,1974.1,5.5669]
[1742594552979,0.00759648,1974.2,1974.1,5.5669]
[1742594553277,50.143,1974.6,1974.5,1.01329]
[1742594553483,51.15624,1974.6,1974.5,4.22109]
[1742594554781,50.143,1974.6,1974.5,4.22109]
[1742594555484,50.143,1974.6,1974.4,1.3781]
[1742594555485,1.01329,1974.5,1974.4,1.3781]
[1742594555786,1.0134,1974.3,1974.2,3.2078]
[1742594556084,1.01345,1974.2,1974.1,2.0452]
[1742594556276,1.01345,1974.2,1974.0,6.24979391]
[1742594556277,1.0135,1974.1,1974.0,0.7104]
[1742594556480,1.01355,1974.0,1973.9,1.37969648]
[1742594556683,2.40115,1974.0,1973.9,1.37969648]
[1742594557978,1.3455,1974.4,1973.9,2.39329648]
[1742594558174,3.306,1974.3,1974.2,4.2212]
[1742594558374,1.01345,1974.2,1974.1,1.331]
[1742594558580,1.01345,1974.2,1973.9,6.48e-06]
[1742594558581,1.01355,1974.0,1973.9,6.48e-06]
[1742594558886,7.62122781,1974.0,1973.9,6.48e-06]
[1742594559083,10.99157808,1974.0,1973.9,6.48e-06]
[1742594559385,12.96997808,1974.0,1973.9,6.48e-06]
[1742594559787,19.63003545,1974.0,1973.9,6.48e-06]
[1742594559986,1.01391,1973.3,1973.2,2.0581]
[1742594560285,4.33891,1973.3,1973.2,3.07206]
[1742594560585,4.33891,1973.3,1973.2,2.0581]
[1742594560782,1.3092,1973.4,1973.3,1.01391]
[1742594560983,50.173,1973.6,1973.5,1.01381]
[1742594561174,3.33,1973.6,1973.5,4.22161]
[1742594561375,0.00759648,1973.7,1973.6,1.01376]
[1742594561580,0.00759648,1973.7,1973.6,1.71766]
[1742594561979,0.00759648,1973.7,1973.4,1.01384]
[1742594562180,1.01386,1973.5,1973.4,1.01384]
[1742594562580,2.32306,1973.5,1973.4,1.01384]
[1742594562779,1.01386,1973.4,1973.3,4.22167]
[1742594563083,2.32306,1973.4,1973.3,4.22167]
[1742594563276,1.01391,1973.3,1973.2,1.02153648]
[1742594563585,5.71991,1973.3,1973.2,1.02155648]
[1742594564483,5.71991,1973.3,1973.2,0.00759648]
[1742594565585,5.71991,1973.3,1973.2,1.02155648]
[1742594566177,5.71991,1973.3,1973.2,0.00759648]
[1742594566891,5.71991,1973.3,1973.2,1.02155648]
[1742594568188,5.71991,1973.3,1973.2,0.00759648]
[1742594568686,1.45083766,1973.3,1973.2,1.02155648]
[1742594568887,3.33759648,1973.7,1973.6,1.01376]
[1742594570587,4.35130648,1973.7,1973.6,1.01376]
[1742594570897,5.73480648,1973.7,1973.6,1.01376]
[1742594571587,1.01376,1973.6,1973.5,4.22157]
[1742594571788,1.01386,1973.5,1973.4,1.01383]
[1742594572098,4.35686,1973.5,1973.4,1.01383]
[1742594572594,1.01386,1973.4,1973.3,1.66039]
[1742594572995,2.32356,1973.4,1973.3,1.66041]
[1742594574599,2.32356,1973.4,1973.3,3.03471]
[1742594575496,3.343,1973.5,1973.4,1.01386]
[1742594575693,1.41039648,1973.7,1973.6,1.01376]
[1742594575901,3.35059648,1973.7,1973.6,4.22156]
[1742594576593,3.35059648,1973.7,1973.6,4.89886]
[1742594579292,0.00759648,1973.7,1973.6,4.89886]
[1742594580499,1.02130648,1973.7,1973.6,4.89886]
[1742594580999,4.36430648,1973.7,1973.6,3.8851]
[1742594581201,5.66990648,1973.7,1973.6,1.69106]
[1742594581494,0.00759648,1973.7,1973.6,4.89886]
[1742594584100,1.02130648,1973.7,1973.6,4.89886]
[1742594584292,4.36530648,1973.7,1973.6,4.22156]
[1742594584600,4.36530648,1973.7,1973.6,1.01376]
[1742594584901,1.01376,1973.6,1973.5,2.40047]
[1742594585100,2.34396,1973.6,1973.5,2.40047]
[1742594585305,2.34396,1973.6,1973.5,5.60827]
[1742594586197,1.01381,1973.5,1973.4,2.02848391]
[1742594586405,5.69001,1973.5,1973.4,3.04234391]
[1742594586999,5.69001,1973.5,1973.4,4.40744391]
[1742594587204,5.69001,1973.5,1973.4,2.02848391]
[1742594587397,4.6762,1973.5,1973.3,1.01387]
[1742594587705,3.346,1973.5,1973.4,4.22166]
[1742594588592,4.75279648,1973.7,1973.6,1.01376]
[1742594588795,1.01376,1973.6,1973.5,4.5286]
[1742594588997,1.01381,1973.5,1973.4,0.6919]
[1742594589202,1.01391,1973.3,1973.2,1.68605648]
[1742594589399,4.36991,1973.3,1973.2,2.34235648]
[1742594590304,4.36991,1973.3,1973.2,5.55015648]
[1742594591406,4.36991,1973.3,1973.2,2.34235648]
[1742594591604,4.36991,1973.3,1973.2,3.21539648]
[1742594591805,4.36991,1973.3,1973.2,0.00759648]
[1742594593203,4.36991,1973.3,1973.2,1.02155648]
[1742594593701,4.36991,1973.3,1973.2,1.29789648]
[1742594593907,4.36991,1973.3,1973.2,2.31185648]
[1742594594305,4.36991,1973.3,1973.2,0.00759648]
[1742594594505,4.44967648,1973.3,1973.2,0.00759648]
[1742594594811,5.31918607,1973.3,1973.2,0.00759648]
[1742594595007,6.70928607,1973.3,1973.2,0.00759648]
[1742594595308,17.37117607,1973.3,1972.6,3.2078]
[1742594595504,60.15946959,1973.2,1972.6,3.2078]
[1742594595701,60.15946959,1973.2,1972.7,1.2903]
[1742594595702,1.0142,1972.8,1972.7,1.2903]
[1742594595901,1.01422,1972.7,1972.6,3.2078]
[1742594596209,2.0771,1972.7,1972.4,3.2078]
[1742594596415,2.0771,1972.7,1972.2,5.07224]
[1742594596416,1.01442,1972.4,1972.3,1.0144]
[1742594596710,3.364,1972.4,1972.3,2.3314]
[1742594597915,4.37837,1972.4,1972.3,1.317]
[1742594598113,5.67007,1972.4,1972.3,1.317]
[1742594598415,1.01442,1972.3,1972.2,3.2078]
[1742594598612,2.99162,1972.3,1972.2,3.2078]
[1742594599010,1.01458,1972.0,1971.9,4.891]
[1742594599209,4.38758,1972.0,1971.9,6.208]
[1742594599807,4.38758,1972.0,1971.9,3.2078]
[1742594600209,3.373,1972.0,1971.9,3.2078]
[1742594600514,3.373,1972.0,1971.9,4.22243]
[1742594601216,4.7085,1972.0,1971.9,4.22243]
[1742594601407,4.7085,1972.0,1971.9,5.60703]
[1742594602513,5.72308,1972.0,1971.9,5.60703]
[1742594602820,5.72308,1972.0,1971.9,4.5924]
[1742594603115,5.72308,1972.0,1971.9,1.01463]
[1742594603313,1.01463,1971.9,1971.8,1.66385]
[1742594603517,2.40713,1971.9,1971.8,3.04745]
[1742594604106,2.40713,1971.9,1971.8,2.39825]
[1742594604308,3.06413,1971.9,1971.8,2.39825]
[1742594605009,3.06413,1971.9,1971.8,1.3836]
[1742594605314,1.01468,1971.8,1971.7,3.2078]
[1742594605503,1.01484,1971.5,1971.4,3.2078]
[1742594605709,1.01484,1971.5,1971.4,1.01489]
[1742594605710,7.62467,1971.5,1971.4,1.01489]
[1742594606103,6.6098,1971.5,1970.7,2.02848391]
[1742594606308,3.2078,1971.3,1971.1,1.3258]
[1742594606510,5.75719,1971.2,1971.1,1.3258]
[1742594606709,4.7422,1971.2,1971.1,2.34084]
[1742594607109,5.75719,1971.2,1971.1,2.34084]
[1742594608214,7.95,1971.2,1970.8,3.88119]
[1742594608516,2.35227,1971.1,1971.0,1.01504]
[1742594608702,1.01509,1971.0,1970.9,1.3258]
[1742594608907,5.75119,1971.0,1970.9,2.34095]
[1742594609108,8.95899,1971.0,1970.9,2.34095]
[1742594609613,5.75119,1971.0,1970.9,2.34095]
[1742594609808,5.75119,1971.0,1970.9,1.3258]
[1742594610008,4.7361,1971.0,1970.9,2.34095]
[1742594610209,0.00759648,1971.3,1971.2,1.01499]
[1742594610507,4.43253648,1971.3,1971.2,1.01499]
[1742594610711,4.74669648,1971.3,1971.2,1.01499]
[1742594610915,5.76163648,1971.3,1971.2,1.01499]
[1742594611107,5.76163648,1971.3,1971.2,1.70259]
[1742594611911,5.76163648,1971.3,1971.2,1.01499]
[1742594613908,4.74669648,1971.3,1971.2,1.01499]
[1742594614112,5.76163648,1971.3,1971.2,1.01499]
[1742594614420,1.01499,1971.2,1971.1,1.2825]
[1742594614621,1.01509,1971.0,1970.9,1.70013]
[1742594614811,3.431,1971.0,1970.9,1.70013]
[1742594615918,3.431,1971.0,1970.9,3.03893]
[1742594617416,0.00759648,1971.3,1971.2,1.01499]
[1742594617719,3.43659648,1971.3,1971.2,1.01499]
[1742594617920,4.76789648,1971.3,1971.2,1.01499]
[1742594618221,4.76789648,1971.3,1971.2,1.69129]
[1742594618422,5.78283648,1971.3,1971.2,1.69129]
[1742594619721,4.76789648,1971.3,1971.2,1.69129]
[1742594620117,3.43659648,1971.3,1971.2,1.69129]
[1742594620720,4.45153648,1971.3,1971.2,1.69129]
[1742594620923,3.43659648,1971.3,1971.2,1.69129]
[1742594621217,0.00759648,1971.3,1971.2,1.69129]
[1742594621422,0.00759648,1971.3,1971.2,3.00589]
[1742594623222,1.02253648,1971.3,1971.2,3.00589]
[1742594623418,2.41283648,1971.3,1971.2,3.00589]
[1742594623626,1.01518,1970.9,1970.8,1.01518]
[1742594623825,4.44013,1971.0,1970.9,1.01515]
[1742594624125,4.7644,1971.0,1970.9,1.01515]
[1742594624323,3.425,1971.0,1970.9,1.01515]
[1742594624528,2.36195648,1971.3,1971.2,1.01499]
[1742594624826,4.77899648,1971.3,1971.2,1.01499]
[1742594625323,4.77899648,1971.3,1971.2,2.37589]
[1742594625722,5.79393648,1971.3,1971.2,2.37589]
[1742594626832,4.77899648,1971.3,1971.2,2.37589]
[1742594627224,5.79393648,1971.3,1971.2,2.37589]
[1742594628235,9.00173648,1971.3,1971.2,2.37589]
[1742594629134,5.79393648,1971.3,1971.2,2.37589]
[1742594630632,1.01515,1971.0,1970.9,1.01508]
[1742594630829,1.01515,1971.0,1970.9,2.42948]
[1742594630830,4.43515,1971.0,1970.9,2.42948]
[1742594631930,4.43515,1971.0,1970.9,2.42955]
[1742594632133,5.81595,1971.0,1970.9,2.42955]
[1742594632828,4.8008,1971.0,1970.9,2.42955]
[1742594633033,5.81589,1971.0,1970.9,2.42955]
[1742594633230,4.8008,1971.0,1970.9,2.42955]
[1742594633536,1.02253648,1971.3,1971.2,1.01499]
[1742594633838,5.81013648,1971.3,1971.2,1.01499]
[1742594634537,5.81013648,1971.3,1971.2,3.02939]
[1742594635037,3.42559648,1971.3,1971.2,3.02939]
[1742594635633,4.44053648,1971.3,1971.2,3.02939]
[1742594635938,4.79519648,1971.3,1971.2,3.02939]
[1742594636130,5.81013648,1971.3,1971.2,3.02939]
[1742594636326,4.79519648,1971.3,1971.2,3.02939]
[1742594636933,5.81013648,1971.3,1971.2,3.02939]
[1742594640436,1.01504,1971.2,1971.1,1.01501]
[1742594640634,2.33224,1971.2,1971.1,1.01501]
[1742594640831,3.85471,1971.2,1970.9,2.02848391]
[1742594641030,1.01509,1971.0,1970.9,3.04357391]
[1742594641241,5.74328,1971.1,1971.0,1.01509]
[1742594641438,4.42608,1971.1,1971.0,2.30359]
[1742594641845,3.411,1971.1,1971.0,2.30359]
[1742594642740,3.41759648,1971.3,1971.2,1.01499]
[1742594643244,4.43253648,1971.3,1971.2,1.01499]
[1742594643435,4.43253648,1971.3,1971.2,2.33879]
[1742594644345,3.41759648,1971.3,1971.2,2.33879]
[1742594645045,4.43253648,1971.3,1971.2,2.33879]
[1742594645840,3.41759648,1971.3,1971.2,2.33879]
[1742594646441,4.43253648,1971.3,1971.2,2.33879]
[1742594647141,3.41759648,1971.3,1971.2,2.33879]
[1742594648644,4.43253648,1971.3,1971.2,2.33879]
[1742594653437,3.41759648,1971.3,1971.2,2.33879]
[1742594654040,4.43253648,1971.3,1971.2,2.33879]
[1742594654248,1.01499,1971.2,1971.1,1.01499]
[1742594654444,4.92609,1971.2,1971.1,1.01499]
[1742594654641,1.01509,1971.1,1971.0,1.01506]
[1742594654946,6.67334406,1971.1,1971.0,1.01506]
[1742594655147,5.74549,1971.1,1971.0,1.01506]
[1742594655544,4.7304,1971.1,1971.0,2.39036]
[1742594656541,5.74544,1971.1,1971.0,2.39036]
[1742594657138,4.7304,1971.1,1971.0,2.39036]
[1742594657351,5.74544,1971.1,1971.0,2.39036]
[1742594657647,5.74544,1971.1,1971.0,1.01506]
[1742594660049,4.7304,1971.1,1971.0,1.01506]
[1742594661145,5.74544,1971.1,1971.0,1.01506]
[1742594661548,4.7304,1971.1,1971.0,1.01506]
[1742594661946,5.74544,1971.1,1971.0,1.01506]
[1742594669355,4.7304,1971.1,1971.0,1.01506]
[1742594669762,5.74544,1971.1,1971.0,1.01506]
[1742594670356,0.00759648,1971.3,1971.0,3.55268]
[1742594670552,4.73719648,1971.3,1971.2,1.01499]
[1742594670759,4.73719648,1971.3,1971.2,3.04269]
[1742594671353,0.00759648,1971.3,1971.2,3.04269]
[1742594674261,2.53685,1971.7,1971.2,3.04269]
[1742594674262,5.74428,1972.0,1971.2,6.55618391]
[1742594674465,1.2856,1971.8,1971.7,1.01473]
[1742594674660,4.6536,1971.8,1971.7,3.61393]
[1742594675863,3.368,1971.8,1971.7,3.61393]
[1742594676769,4.73,1971.8,1971.7,3.61393]
[1742594678667,1.362,1971.8,1971.7,6.82173]
[1742594678872,3.363,1972.1,1972.0,1.01458]
[1742594679169,51.94878,1972.2,1972.1,1.01453]
[1742594679360,51.29148,1972.2,1972.1,1.01453]
[1742594679557,1.01458,1972.0,1971.9,2.02848391]
[1742594679765,7.59538,1972.0,1971.9,2.02848391]
[1742594680664,7.59538,1972.0,1971.6,0.00759648]
[1742594680665,1.01463,1971.9,1971.8,1.01464]
[1742594682873,1.01463,1971.9,1971.8,1.01468]
[1742594682874,3.37,1971.9,1971.8,1.01468]
[1742594683769,3.37759648,1972.1,1972.0,1.01458]
[1742594685566,3.37759648,1972.1,1971.9,1.01459]
[1742594685766,1.01462,1972.0,1971.9,1.01459]
[1742594685969,3.37759648,1972.1,1972.0,1.01458]
[1742594686475,4.39212648,1972.1,1972.0,1.01458]
[1742594687478,3.37759648,1972.1,1972.0,1.01458]
[1742594688974,3.378,1972.3,1971.9,5.74431]
[1742594689176,1.01435,1972.5,1972.4,1.01434]
[1742594689378,3.377,1972.5,1972.4,1.01434]
[1742594689971,1.01429,1972.6,1972.5,1.01428]
[1742594690167,4.39786648,1972.6,1972.5,1.01428]
[1742594691076,3.38359648,1972.6,1972.5,1.01428]
[1742594691577,7.60566648,1972.6,1972.5,1.01428]
[1742594692978,3.38359648,1972.6,1972.5,1.01428]
[1742594694177,4.39786648,1972.6,1972.5,1.01428]
[1742594696476,3.38359648,1972.6,1972.5,1.01428]
[1742594696773,0.00759648,1972.6,1972.5,1.01428]
[1742594697678,0.00759648,1972.6,1972.5,3.04276391]
[1742594697884,3.368,1972.9,1972.8,1.01417]
[1742594699080,0.00759648,1973.0,1972.9,1.01412]
[1742594699279,1.01417,1972.9,1972.8,1.01413]
[1742594699776,4.38569648,1973.0,1972.9,1.01412]
[1742594700683,5.90677648,1973.0,1972.7,0.00759648]
[1742594700976,1.01417,1972.8,1972.7,0.00759648]
[1742594701182,4.38317,1972.8,1972.7,0.00759648]
[1742594701682,4.38317,1972.8,1972.7,1.02181648]
[1742594703086,3.369,1972.8,1972.7,1.02181648]
[1742594703476,3.37659648,1973.0,1972.9,1.01412]
[1742594703676,4.39065648,1973.0,1972.9,1.01412]
[1742594706987,3.37659648,1973.0,1972.9,1.01412]
[1742594707185,4.39065648,1973.0,1972.9,1.01412]
[1742594707981,3.37659648,1973.0,1972.9,1.01412]
[1742594708689,4.39065648,1973.0,1972.9,1.01412]
[1742594708889,3.37659648,1973.0,1972.9,1.01412]
[1742594710887,0.00759648,1973.0,1972.9,1.01412]
[1742594714289,3.354,1973.4,1972.9,3.2078]
[1742594714588,1.01382,1973.5,1973.4,1.01386]
[1742594714784,4.36782,1973.5,1973.4,1.01386]
[1742594715887,4.36682,1973.5,1973.4,1.01386]
[1742594716482,6.5608,1973.5,1972.9,7.91771391]
[1742594716684,4.22178,1973.3,1973.2,1.01393]
[1742594717187,5.56118,1973.3,1973.2,1.01393]
[1742594718295,1.01396,1973.2,1973.1,1.4227]
[1742594718489,1.01401,1973.1,1973.0,2.43675]
[1742594718695,1.70391,1973.1,1973.0,2.43675]
[1742594718995,6.90391,1973.1,1973.0,2.43675]
[1742594719383,7.82996918,1973.1,1973.0,2.43676]
[1742594719587,6.90391,1973.1,1973.0,2.43676]
[1742594719788,7.82997649,1973.1,1973.0,2.43676]
[1742594719986,7.82997649,1973.1,1973.0,1.4227]
[1742594720186,11.18397649,1973.1,1973.0,1.4227]
[1742594720386,11.18397649,1973.1,1973.0,1.01406]
[1742594720587,1.01415,1972.9,1972.8,1.0141]
[1742594720783,4.36715,1972.9,1972.8,2.3552]
[1742594720988,5.78685,1972.9,1972.8,2.3552]
[1742594721991,4.7727,1972.9,1972.8,2.3552]
[1742594722196,9.10346,1973.4,1973.2,1.01391]
[1742594722391,1.01398,1973.3,1973.2,1.01391]
[1742594723493,2.35118,1973.3,1973.2,2.35371]
[1742594724393,5.55898,1973.3,1973.2,2.35371]
[1742594725398,2.53491,1973.2,1972.8,4.56387391]
[1742594725599,8.27331,1973.1,1973.0,1.3398]